bitfinex/quotes_ETHUSD_20240719
["timestamp","ask_amount","ask_price","bid_price","bid_amount"]
[1721408929567,3.0,3495.1,3493.6,3.49467786]
[1721408929766,7.47,3495.4,3493.7,2.4692]
[1721408929767,4.49617379,3495.3,3493.7,2.4692]
[1721408929990,4.49617379,3495.3,3493.7,5.33143]
[1721408930158,5.29167194,3495.3,3493.8,0.91973934]
[1721408930354,1.49617379,3495.2,3493.8,0.91973934]
[1721408930775,4.49617379,3495.3,3493.9,5.33128]
[1721408930998,7.47,3495.4,3494.2,2.86187]
[1721408931221,4.19270855,3495.9,3494.3,5.33095]
[1721408931222,2.3973,3495.9,3494.3,5.33095]
[1721408931520,4.35364755,3495.9,3494.4,0.825004]
[1721408931879,4.35364755,3495.9,3494.5,0.03694264]
[1721408932268,3.0,3495.8,3494.5,0.03694264]
[1721408932470,6.01944145,3495.8,3494.6,0.33311466]
[1721408932699,4.52379578,3495.8,3494.6,0.33311466]
[1721408932899,4.52379578,3495.8,3494.7,0.03571415]
[1721408933105,6.01944145,3495.8,3494.7,0.03571415]
[1721408933907,2.04564567,3495.7,3494.3,2.4692]
[1721408934107,2.43839,3495.6,3494.3,2.71612]
[1721408934296,5.43839,3495.6,3494.4,0.03455581]
[1721408934492,5.43830636,3495.6,3494.4,0.03455581]
[1721408935705,3.94274433,3495.6,3494.4,0.03455581]
[1721408936402,5.43830636,3495.6,3494.4,0.03455581]
[1721408936609,0.78093527,3495.5,3494.4,0.03455581]
[1721408936912,0.78093527,3495.5,3494.3,2.71612]
[1721408937406,0.78093527,3495.5,3494.4,0.03455581]
[1721408938095,1.49598799,3495.2,3493.9,2.3428]
[1721408938270,1.49618181,3495.1,3494.0,0.03208321]
[1721408940728,1.49695701,3495.1,3494.0,0.03208321]
[1721408941384,1.49695701,3495.0,3494.0,0.03208321]
[1721408942339,1.49695701,3494.9,3494.0,0.03208321]
[1721408942515,1.79634841,3494.4,3492.7,2.4766]
[1721408942818,1.49792041,3493.8,3492.8,0.03001997]
[1721408943119,2.335,3494.3,3492.8,0.250662]
[1721408943434,1.49769411,3493.8,3492.7,2.4766]
[1721408943796,4.79723293,3494.2,3492.8,0.0289852]
[1721408943797,1.49769411,3493.9,3492.8,0.0289852]
[1721408944002,1.49769411,3494.0,3492.8,0.0289852]
[1721408944304,4.49769411,3494.2,3492.8,2.8919952]
[1721408944624,1.49769411,3494.4,3493.0,2.3809]
[1721408944818,3.0,3494.9,3493.1,0.81930766]
[1721408944819,1.49769411,3494.6,3493.1,0.81930766]
[1721408945019,1.49769411,3494.5,3493.1,0.84825042]
[1721408946303,1.49854567,3494.4,3493.1,0.84825042]
[1721408946817,1.49854567,3494.3,3493.1,0.84825042]
[1721408947196,1.49854567,3494.4,3493.1,0.84825042]
[1721408947534,1.49854567,3494.5,3493.4,2.3994]
[1721408947731,7.47,3495.0,3493.4,2.3994]
[1721408947732,1.49854567,3494.7,3493.4,2.3994]
[1721408947946,1.49854567,3494.7,3493.5,0.02907116]
[1721408948252,1.49854567,3494.8,3493.6,0.0572329]
[1721408948528,1.49854567,3494.9,3493.4,5.26193]
[1721408948723,1.49854567,3494.9,3493.5,0.65050461]
[1721408948939,7.47,3495.0,3493.5,0.65050461]
[1721408949105,1.49795287,3494.8,3493.5,0.65050461]
[1721408949307,1.49795287,3494.7,3493.5,0.02903912]
[1721408949526,1.4976225,3494.8,3493.5,0.02903912]
[1721408949828,1.4976225,3495.0,3493.9,2.4908]
[1721408950036,1.4976225,3495.2,3493.9,2.4908]
[1721408950216,1.4976225,3495.3,3494.0,3.48353224]
[1721408950395,1.4976225,3495.4,3494.1,2.4908]
[1721408950595,1.4976225,3495.3,3494.1,2.4908]
[1721408950828,1.4976225,3495.3,3494.2,0.0288155]
[1721408950993,1.4976225,3495.4,3494.3,0.59169565]
[1721408951405,1.4976225,3495.4,3494.4,0.02878723]
[1721408952371,1.4976225,3495.5,3494.4,0.02878723]
[1721408952667,3.0,3495.7,3494.4,0.02878723]
[1721408952793,1.49781463,3495.5,3494.4,0.02878723]
[1721408952994,1.49781463,3495.4,3494.4,0.02878723]
[1721408953226,1.4978566,3495.5,3494.4,0.02878723]
[1721408953449,1.4978566,3495.3,3494.4,0.31112829]
[1721408953591,1.4978566,3495.2,3494.5,0.02867851]
[1721408953795,1.4978566,3495.2,3494.1,2.4908]
[1721408954213,1.4978566,3495.2,3494.2,0.0287226]
[1721408954414,2.12738505,3495.2,3494.2,0.0287226]
[1721408954732,0.62952845,3495.2,3494.2,0.0287226]
[1721408954895,1.4978566,3495.3,3494.2,0.0287226]
[1721408955091,1.4978566,3495.3,3494.1,2.4908]
[1721408955295,1.4978566,3495.3,3494.2,0.02875131]
[1721408955525,1.4978566,3495.2,3494.1,2.4908]
[1721408955830,1.49610652,3495.2,3494.2,0.02875131]
[1721408956038,1.49610652,3495.2,3494.2,0.28070644]
[1721408956652,1.49610652,3495.3,3494.2,0.28070644]
[1721408957097,1.49610652,3495.3,3494.2,0.25195513]
[1721408957835,1.49610652,3495.2,3494.2,0.25195513]
[1721408958132,1.49610652,3495.3,3494.2,0.25195513]
[1721408958294,1.49610652,3495.3,3494.3,0.27427551]
[1721408958500,1.49610652,3495.2,3494.3,0.27427551]
[1721408958928,3.29710961,3495.6,3494.4,0.02872304]
[1721408959136,1.49512648,3495.3,3494.4,0.02872304]
[1721408959318,1.49512648,3495.3,3494.3,0.27427551]
[1721408960126,1.49512648,3495.2,3494.3,0.27427551]
[1721408960327,1.49512648,3495.2,3494.4,0.02860187]
[1721408960643,1.49512648,3495.2,3494.4,0.27936774]
[1721408960937,1.49512648,3495.3,3494.4,0.27936774]
[1721408962238,3.0,3495.5,3494.4,0.27936774]
[1721408962445,1.49733546,3495.3,3494.4,0.27936774]
[1721408962617,1.49733546,3495.3,3494.5,0.02858774]
[1721408962935,1.49733546,3495.3,3494.4,0.27936774]
[1721408965511,3.0,3495.5,3494.4,0.27936774]
[1721408965717,1.49671653,3495.2,3494.5,0.02766238]
[1721408965915,1.49671653,3495.2,3494.1,2.4908]
[1721408966243,1.49664679,3495.1,3494.2,0.02770478]
[1721408966618,1.49664679,3495.0,3494.2,0.02770478]
[1721408967002,1.49664679,3495.1,3494.2,0.27955526]
[1721408967203,1.49664679,3495.2,3494.2,0.27955526]
[1721408967908,1.49664679,3495.3,3494.2,0.27955526]
[1721408968343,1.49664679,3495.4,3494.3,2.4423]
[1721408968547,1.49664679,3495.4,3494.4,0.02767652]
[1721408968703,1.49725139,3495.4,3494.5,0.2721827]
[1721408968901,1.49725139,3495.4,3494.6,0.02764825]
[1721408969325,1.49725139,3495.4,3494.7,2.4423]
[1721408969853,1.49725139,3495.4,3494.8,0.02761999]
[1721408970257,1.49725139,3495.4,3494.7,2.4423]
[1721408970544,1.49725139,3495.4,3494.8,0.02761999]
[1721408970747,1.49725139,3495.4,3494.7,2.71374827]
[1721408971044,1.49725139,3495.4,3494.8,0.02761999]
[1721408971546,1.49725139,3495.4,3494.7,2.71374827]
[1721408971860,1.49725139,3495.4,3494.8,0.02761999]
[1721408972145,1.49713675,3495.3,3494.7,2.4423]
[1721408972545,1.49713675,3495.2,3494.3,2.4313]
[1721408972857,1.49713675,3495.2,3494.4,0.02765288]
[1721408974847,1.49713675,3495.3,3494.4,0.02765288]
[1721408975002,1.49713675,3495.3,3494.5,0.27108034]
[1721408975208,1.49742084,3495.3,3494.6,0.02762462]
[1721408977331,1.49742084,3495.2,3494.6,0.02762462]
[1721408977845,1.49742084,3495.1,3494.3,2.4313]
[1721408978049,1.49742084,3495.1,3494.7,0.02665729]
[1721408978344,1.49742084,3495.0,3494.3,2.4313]
[1721408978544,1.49761447,3495.0,3494.4,0.02669968]
[1721408979236,1.49761447,3495.1,3494.4,0.02669968]
[1721408979853,1.49761447,3495.4,3494.5,2.2669]
[1721408980222,1.49761447,3495.3,3494.6,0.02667142]
[1721408980430,1.49761447,3495.2,3494.7,0.22935714]
[1721408980838,1.49761447,3495.3,3494.5,2.2669]
[1721408981155,7.47,3495.9,3493.7,5.21649]
[1721408981156,1.49761447,3495.1,3493.7,5.21649]
[1721408981531,2.3819,3495.4,3493.8,0.0267845]
[1721408981759,1.49763969,3495.1,3493.8,0.0267845]
[1721408982251,1.49762239,3495.1,3493.8,0.0267845]
[1721408982619,1.49762239,3495.1,3493.9,0.52432745]
[1721408983020,1.49762239,3495.1,3494.0,0.02675622]
[1721408984732,2.3819,3495.4,3494.0,0.02675622]
[1721408984940,1.49806615,3495.1,3494.0,0.02675622]
[1721408985129,4.17957938,3495.4,3494.0,0.02675622]
[1721408985130,1.49806615,3495.2,3494.1,0.02769666]
[1721408985761,1.49806615,3495.2,3494.2,0.02768151]
[1721408986057,5.09729261,3495.8,3494.3,2.3407]
[1721408986058,1.49806615,3495.3,3494.3,2.3407]
[1721408986263,1.49806615,3495.2,3494.3,2.3407]
[1721408986426,1.49806615,3495.2,3494.4,0.23407]
[1721408986823,1.49806615,3495.3,3494.4,0.23407]
[1721408987318,3.0,3495.5,3494.4,0.23407]
[1721408987319,1.49806615,3495.2,3494.4,0.23407]
[1721408987520,4.79767938,3495.5,3494.4,0.23407]
[1721408987521,1.49806615,3495.1,3494.4,0.23407]
[1721408987717,1.49806615,3495.1,3494.3,2.3407]
[1721408987966,3.0,3495.5,3494.3,2.3407]
[1721408988168,1.49808778,3495.1,3494.3,2.3407]
[1721408989361,1.49808778,3494.9,3494.3,2.3407]
[1721408989560,1.49808778,3495.0,3494.3,2.3407]
[1721408989764,1.49808778,3494.9,3494.3,2.3407]
[1721408989927,1.49808778,3495.0,3494.3,2.3407]
[1721408990427,1.49808778,3494.9,3494.3,2.3407]
[1721408991049,1.49808778,3495.0,3494.3,2.3407]
[1721408991274,0.17977053,3495.2,3494.3,2.3407]
[1721408991477,1.50050865,3494.9,3494.3,2.3407]
[1721408993069,1.50050865,3494.8,3494.3,2.3407]
[1721408993779,1.50050865,3495.0,3494.3,2.3407]
[1721408993941,1.50050865,3495.0,3494.3,2.860972]
[1721408994467,3.0,3495.7,3494.3,2.860972]
[1721408994678,1.50213898,3495.0,3494.3,2.860972]
[1721408994833,1.50213898,3494.9,3494.3,2.3407]
[1721408995034,2.10299458,3495.6,3494.3,2.3407]
[1721408995035,1.50227999,3495.0,3494.3,2.3407]
[1721408995233,1.50227999,3494.9,3494.3,2.3407]
[1721408995464,1.50227999,3494.9,3494.4,0.23407]
[1721408996247,3.0,3495.7,3494.4,0.23407]
[1721408996248,1.50227999,3495.1,3494.4,0.23407]
[1721408996949,1.50227999,3495.0,3494.4,0.23407]
[1721408997145,1.50227999,3495.1,3494.5,0.05722244]
[1721408997481,1.50227999,3495.3,3494.6,2.4522]
[1721408997674,1.80273599,3495.7,3494.7,0.24522]
[1721408997675,1.50223771,3495.4,3494.7,0.24522]
[1721408998335,1.50223771,3495.5,3494.7,0.24522]
[1721408998671,1.50223771,3495.6,3494.9,2.2752]
[1721408998894,1.50223771,3496.0,3495.2,2.2752]
[1721408999186,1.50223771,3496.1,3495.3,0.6188316]
[1721408999351,1.50223771,3496.2,3495.2,2.2752]
[1721409000261,1.50223771,3496.2,3495.3,0.05720462]
[1721409000446,9.756,3497.0,3495.4,2.2752]
[1721409000651,1.50070848,3496.3,3495.5,5.7205]
[1721409000897,1.50070848,3496.3,3495.6,0.80528991]
[1721409001053,1.50070848,3496.4,3495.7,7.9965]
[1721409001249,1.50070848,3496.3,3495.7,7.9965]
[1721409001491,1.50070848,3496.4,3495.7,7.9965]
[1721409002091,1.50070848,3496.3,3495.7,7.9965]
[1721409002293,1.50070848,3496.4,3495.8,0.88017899]
[1721409002959,1.4992401,3496.4,3495.8,0.88017899]
[1721409003396,1.4992401,3496.5,3495.8,0.88017899]
[1721409003550,1.4992401,3496.4,3495.8,0.88017899]
[1721409004288,1.4992401,3496.5,3495.8,0.88017899]
[1721409005180,1.4992401,3496.5,3495.9,0.8876679]
[1721409005385,1.4992401,3496.6,3495.9,0.8876679]
[1721409005567,1.4992401,3496.6,3495.7,7.9965]
[1721409005763,1.4992401,3496.5,3495.7,7.9965]
[1721409006307,1.49794059,3496.6,3495.7,7.9965]
[1721409006683,1.49794059,3496.7,3495.7,7.9965]
[1721409006958,1.49794059,3496.6,3495.7,7.9965]
[1721409007194,2.286,3497.4,3495.9,2.4721]
[1721409007195,1.49794059,3496.7,3495.9,2.4721]
[1721409007398,1.49794059,3496.9,3496.0,5.7208]
[1721409007592,2.286,3497.4,3496.0,5.7208]
[1721409007593,1.49794059,3497.0,3496.0,5.7208]
[1721409007800,1.49794059,3497.1,3496.0,5.77799244]
[1721409008104,1.49794059,3497.1,3496.1,2.4721]
[1721409008281,1.49794059,3497.2,3496.2,6.53979]
[1721409008786,1.49794059,3497.2,3496.3,5.33222]
[1721409008992,1.49794059,3497.6,3496.5,2.85992]
[1721409009291,1.49598959,3498.0,3496.6,9.02255626]
[1721409009495,1.49590246,3498.0,3496.7,1.24324763]
[1721409009791,1.49590246,3498.2,3496.7,1.24324763]
[1721409009970,2.457,3498.5,3496.8,5.7195]
[1721409010172,1.49474229,3498.1,3496.8,5.7195]
[1721409010396,1.49474229,3498.3,3496.9,0.90833884]
[1721409010705,2.2822,3498.0,3497.0,5.7192]
[1721409010874,1.49474229,3497.8,3497.0,5.7192]
[1721409011073,1.49474229,3497.6,3497.0,5.7192]
[1721409011880,1.44474229,3497.6,3497.0,5.7192]
[1721409012581,3.0,3497.8,3497.0,5.7192]
[1721409012782,0.70743737,3497.7,3497.0,5.7192]
[1721409013173,3.0,3497.9,3497.0,8.1672]
[1721409013367,3.0,3498.3,3497.0,8.1672]
[1721409013684,0.2967571,3498.4,3497.0,8.1672]
[1721409014074,0.2967571,3498.4,3497.1,3.3395759]
[1721409014268,1.19,3499.1,3497.2,5.7189]
[1721409014475,0.29821737,3499.0,3497.3,1.79742349]
[1721409014673,1.19,3499.1,3497.4,5.7185]
[1721409015516,1.19,3499.1,3497.5,2.448]
[1721409015728,1.19,3499.1,3497.6,5.7182]
[1721409021197,1.19,3499.1,3497.6,6.01023043]
[1721409021396,1.19,3499.1,3497.7,2.44886579]
[1721409021598,7.47,3499.5,3497.9,2.3917]
[1721409021599,3.0,3499.4,3497.9,2.3917]
[1721409021934,3.0,3499.4,3498.1,2.3866]
[1721409022076,2.6365,3499.9,3498.3,2.3866]
[1721409022425,2.6365,3499.9,3498.4,5.7169]
[1721409022638,0.2,3499.9,3498.4,5.7169]
[1721409022802,0.2,3499.9,3499.3,3.02]
[1721409022997,0.2,3499.9,3499.4,6.11218755]
[1721409023387,0.2,3499.9,3499.5,2.85752]
[1721409023614,0.2,3499.9,3499.6,6.5889494]
[1721409024335,0.2,3499.9,3499.7,2.4623]
[1721409024503,0.2,3499.9,3499.8,7.47301926]
[1721409025235,0.2,3499.9,3499.8,7.75363399]
[1721409025540,0.2,3499.9,3499.8,7.47301926]
[1721409026911,0.2,3499.9,3499.8,6.92301926]
[1721409028133,0.29631244,3501.5,3499.8,6.92301926]
[1721409028292,1.32338124,3501.4,3499.9,0.90584759]
[1721409028641,0.29631244,3501.5,3499.9,0.90584759]
[1721409029139,0.29631244,3501.5,3500.0,5.7143]
[1721409030631,0.29631244,3501.5,3500.2,2.3406]
[1721409030796,1.19,3502.0,3500.3,5.77091935]
[1721409030797,4.19,3502.0,3500.3,5.77091935]
[1721409031106,4.19,3502.0,3500.3,6.00803638]
[1721409031308,1.39504,3501.9,3500.4,0.88986364]
[1721409031511,4.19,3502.0,3500.5,5.77061838]
[1721409031512,1.19,3502.0,3500.5,5.77061838]
[1721409031715,1.19,3502.0,3500.6,0.31866971]
[1721409032330,1.19,3502.0,3500.7,8.10068272]
[1721409032536,1.19,3502.0,3500.8,0.90041257]
[1721409032752,0.29610274,3502.5,3500.9,5.76990788]
[1721409032908,2.2768,3502.7,3500.9,5.76990788]
[1721409032909,2.2768,3502.7,3501.0,2.02055681]
[1721409033109,2.2768,3502.7,3501.1,5.7125]
[1721409033350,2.2768,3502.7,3501.1,5.76364242]
[1721409033842,2.2768,3502.7,3501.1,5.82074831]
[1721409034151,2.2768,3502.7,3501.1,5.76364242]
[1721409034309,3.0,3503.0,3501.3,2.3174]
[1721409034515,3.0,3503.0,3501.4,5.712]
[1721409034709,5.4662,3503.2,3501.4,5.76309767]
[1721409035008,0.29602229,3503.0,3501.4,5.76309767]
[1721409035926,1.7,3502.7,3501.4,5.76309767]
[1721409036246,1.7,3502.1,3501.4,5.76309767]
[1721409036444,2.5138,3502.6,3501.4,5.76309767]
[1721409036748,3.0,3502.5,3501.4,5.712]
[1721409037048,3.0,3502.5,3501.5,0.04403296]
[1721409038736,0.17,3502.6,3501.5,0.04403296]
[1721409039077,0.29602229,3503.0,3501.5,0.04403296]
[1721409039430,0.29602229,3503.0,3501.6,5.7117]
[1721409039635,0.29602229,3503.0,3501.7,0.04400313]
[1721409040735,3.29602229,3503.0,3501.7,0.04400313]
[1721409040939,3.29602229,3503.0,3501.6,5.7117]
[1721409041148,0.73704223,3502.9,3501.6,5.7117]
[1721409041376,0.73704223,3502.9,3501.7,0.04315003]
[1721409042852,0.73704223,3502.9,3501.8,2.3937]
[1721409043053,3.0,3502.9,3501.9,0.04311686]
[1721409043553,1.19,3503.3,3502.0,5.711]
[1721409043755,7.47,3503.6,3502.1,0.05709864]
[1721409043954,7.47,3503.6,3502.2,5.7107]
[1721409044158,2.2622,3503.4,3502.2,5.7107]
[1721409044391,2.2622,3503.4,3502.3,0.04307064]
[1721409044392,1.7,3503.1,3502.3,0.04307064]
[1721409044978,1.7,3503.1,3502.2,5.7107]
[1721409045679,1.7,3502.7,3502.2,5.7107]
[1721409046394,3.0,3503.2,3502.2,5.7107]
[1721409046689,2.34350179,3503.1,3502.2,5.7107]
[1721409047072,1.7,3502.7,3502.2,5.7107]
[1721409047268,2.3904,3502.6,3502.2,5.7107]
[1721409047456,5.3904,3502.6,3502.2,5.7107]
[1721409048625,5.3904,3502.6,3500.9,2.2612]
[1721409048626,0.55,3502.5,3500.9,2.2612]
[1721409048800,0.55,3502.5,3501.0,0.04036858]
[1721409048801,1.7,3502.3,3501.0,0.04036858]
[1721409049180,1.7,3502.3,3499.7,7.39]
[1721409049181,2.4242,3502.2,3500.2,2.4077]
[1721409049383,2.4242,3502.2,3500.3,0.03917207]
[1721409049384,1.7,3501.6,3500.3,0.03917207]
[1721409049643,1.7,3501.6,3499.8,2.4077]
[1721409049644,2.4242,3501.5,3499.8,2.4077]
[1721409049920,2.9742,3501.5,3500.4,0.03401836]
[1721409050134,0.46742,3501.4,3499.8,2.4077]
[1721409050429,0.55,3501.3,3499.8,2.4077]
[1721409050924,3.46742,3501.4,3499.8,2.4077]
[1721409052996,1.7,3501.1,3499.8,2.4077]
[1721409053195,1.7,3501.1,3499.0,7.39]
[1721409053196,1.7,3501.1,3499.1,2.3354]
[1721409053436,0.72,3501.0,3499.2,1.00673751]
[1721409053611,0.72,3501.0,3499.2,0.03419751]
[1721409053811,0.72,3501.0,3499.1,2.3354]
[1721409054497,0.29731942,3500.9,3499.1,2.3354]
[1721409054820,0.29731942,3500.9,3499.2,0.03419751]
[1721409055338,0.29731942,3500.9,3499.3,0.05714352]
[1721409055637,0.29731942,3500.9,3499.4,0.03416764]
[1721409055638,3.29731942,3500.9,3499.4,0.03416764]
[1721409055834,0.29731942,3500.9,3499.4,0.03416764]
[1721409057413,3.46742,3501.4,3499.4,0.03416764]
[1721409057597,0.296719,3501.2,3499.5,2.3354]
[1721409057940,0.3764139,3501.1,3499.6,0.25780741]
[1721409058299,0.3764139,3501.1,3499.7,0.03412285]
[1721409059816,0.55,3501.0,3499.5,2.3354]
[1721409060123,3.55,3501.0,3499.5,2.3354]
[1721409060330,3.55,3501.0,3498.2,2.3354]
[1721409060331,1.7,3500.9,3498.2,2.3354]
[1721409060537,1.7,3500.9,3497.7,0.14476739]
[1721409060538,1.7,3500.3,3498.4,2.3354]
[1721409060711,0.07509476,3500.2,3498.4,2.3354]
[1721409061043,2.4246,3500.1,3498.5,0.03214623]
[1721409061353,0.07479272,3500.0,3498.4,2.3354]
[1721409061553,0.30493927,3499.9,3498.4,2.3354]
[1721409061737,0.30493927,3499.9,3497.9,2.408]
[1721409061738,0.07476016,3499.8,3497.9,2.408]
[1721409062143,0.07476016,3499.8,3498.0,0.03254737]
[1721409062556,0.55,3499.7,3498.0,0.03254737]
[1721409062778,0.07476017,3499.6,3498.0,0.03254737]
[1721409062980,0.07476017,3499.6,3498.1,0.24405474]
[1721409063345,0.07476017,3499.6,3498.2,0.03251748]
[1721409064245,0.07476017,3499.6,3498.1,0.24405474]
[1721409067382,1.7,3499.4,3497.5,2.3628]
[1721409067548,0.07446133,3499.3,3497.5,2.3628]
[1721409067752,0.07446133,3499.3,3497.6,0.03260715]
[1721409067753,0.62446133,3499.3,3497.6,0.03260715]
[1721409067978,0.92258485,3499.3,3497.5,2.3628]
[1721409068179,0.92258485,3499.3,3497.7,0.0325922]
[1721409068180,0.80997848,3499.2,3497.7,0.0325922]
[1721409068386,0.07446133,3499.1,3497.5,2.59908]
[1721409068695,0.07446133,3499.1,3497.6,0.03260715]
[1721409069410,2.3032,3499.0,3497.6,0.03260715]
[1721409069701,1.77416544,3498.9,3497.0,2.3542]
[1721409070000,1.77416544,3498.9,3497.7,0.03291732]
[1721409070001,2.3032,3498.4,3497.7,0.03291732]
[1721409070298,2.3032,3498.4,3497.1,0.23542]
[1721409070299,1.7,3498.0,3496.5,2.3542]
[1721409070661,1.7,3498.0,3496.6,0.03360135]
[1721409071070,0.0738725,3497.9,3496.6,0.03360135]
[1721409071285,0.0738725,3497.9,3496.1,2.3542]
[1721409071286,0.17738725,3497.8,3496.1,2.3542]
[1721409071590,0.25125975,3497.8,3496.7,0.03359142]
[1721409071805,0.25125975,3497.8,3496.1,2.3542]
[1721409071976,0.0738725,3497.8,3496.8,0.03364692]
[1721409072179,0.0738725,3497.8,3496.3,0.05718452]
[1721409072501,3.0,3498.7,3496.4,2.38790674]
[1721409072800,2.3345,3498.9,3496.6,2.4128]
[1721409073013,0.03595474,3498.8,3496.6,2.4128]
[1721409073177,0.03595474,3498.8,3496.7,0.03363]
[1721409073703,0.58595474,3498.8,3496.7,0.09080884]
[1721409073858,0.59204547,3498.7,3496.8,0.25036088]
[1721409074070,0.03595474,3498.6,3496.9,0.03360009]
[1721409076723,0.58595474,3498.6,3496.9,0.03360009]
[1721409077069,3.58595474,3498.6,3496.6,2.4128]
[1721409077296,3.58595474,3498.6,3496.7,0.03358471]
[1721409077483,0.58780002,3498.5,3496.8,0.24463847]
[1721409077694,0.03606365,3498.4,3496.8,0.24463847]
[1721409078225,0.29827272,3498.3,3496.9,0.0335548]
[1721409078719,0.03606365,3498.4,3496.9,0.0335548]
[1721409079524,0.03606365,3498.4,3497.0,2.3722]
[1721409079724,0.03606365,3498.4,3497.1,0.2707569]
[1721409079902,3.0,3498.8,3497.3,2.2602]
[1721409080211,0.29793934,3498.5,3497.4,0.55]
[1721409080394,2.3125,3499.4,3497.5,2.31736497]
[1721409080610,2.61047193,3499.4,3497.5,2.31736497]
[1721409080916,0.43104719,3499.3,3497.6,0.32352727]
[1721409081129,1.7,3499.1,3497.6,0.32352727]
[1721409081272,1.7,3499.1,3497.6,0.03344344]
[1721409082740,3.43104719,3499.3,3497.6,0.03344344]
[1721409083098,3.43104719,3499.3,3497.7,0.05716704]
[1721409083337,3.43104719,3499.3,3497.6,0.03344344]
[1721409083548,3.43104719,3499.3,3497.8,0.03325926]
[1721409083717,0.60415191,3499.2,3497.7,0.03327421]
[1721409083917,0.60415191,3499.2,3497.9,0.03324431]
[1721409084112,0.60415191,3499.2,3497.8,0.03325926]
[1721409084315,0.29797193,3499.4,3498.0,0.03322937]
[1721409084520,4.1699,3500.0,3498.1,0.29960974]
[1721409084724,0.29794133,3499.8,3498.1,0.27566384]
[1721409084902,0.03595474,3499.7,3498.1,0.27566384]
[1721409085544,1.7,3499.6,3498.1,0.03321443]
[1721409085743,2.3012,3499.4,3498.1,0.03321443]
[1721409085944,1.7,3499.2,3497.9,2.3341]
[1721409086144,0.03595474,3499.1,3497.2,2.3874]
[1721409086503,0.03595474,3499.1,3497.3,0.033334]
[1721409086504,0.58595474,3499.1,3497.3,0.033334]
[1721409086749,0.52859547,3499.0,3497.3,0.033334]
[1721409087418,0.03595474,3498.9,3497.3,0.033334]
[1721409090163,0.03595474,3498.9,3497.4,2.4871]
[1721409090319,0.03595474,3498.9,3497.4,2.52041905]
[1721409095133,0.29791641,3498.8,3497.4,2.52041905]
[1721409096662,0.03595474,3498.9,3497.4,2.52041905]
[1721409096865,0.20955021,3498.9,3497.5,0.25204191]
[1721409097167,0.03595474,3498.9,3497.5,0.25204191]
[1721409097332,0.03595474,3498.9,3497.6,0.03328749]
[1721409100281,0.03595474,3498.9,3497.4,2.4871]
[1721409100623,1.7,3498.4,3496.3,2.2921]
[1721409100936,2.3739,3498.2,3496.4,0.62162449]
[1721409101137,1.7,3498.0,3496.4,0.03238413]
[1721409101355,0.03609923,3497.9,3496.4,0.03238413]
[1721409101536,4.52867995,3497.9,3496.3,2.2921]
[1721409101738,4.52867995,3497.9,3494.6,1.98758697]
[1721409101739,2.2684,3497.5,3495.1,2.3852]
[1721409101938,1.7,3497.2,3495.1,2.3852]
[1721409102155,1.7,3496.8,3495.2,0.31380485]
[1721409102361,0.0361884,3496.7,3495.2,0.31380485]
[1721409102540,0.0361884,3496.7,3495.2,0.28337303]
[1721409102747,2.4676,3496.6,3495.1,2.3852]
[1721409102964,1.7,3496.1,3493.9,2.3362]
[1721409103269,0.03622092,3496.0,3493.9,2.3362]
[1721409103428,0.03622092,3496.0,3494.0,0.02986753]
[1721409104071,0.03622092,3496.0,3493.9,2.3362]
[1721409104234,0.47362209,3495.9,3494.0,0.23362]
[1721409104659,0.03622092,3496.0,3494.0,0.23362]
[1721409104877,0.03622092,3496.0,3494.1,0.04696422]
[1721409105546,0.03622092,3496.0,3494.2,0.55]
[1721409105752,0.03622092,3496.0,3494.2,0.59693614]
[1721409106780,0.03622092,3496.0,3494.0,0.23362]
[1721409106949,0.17362209,3495.9,3494.3,0.04690806]
[1721409107149,0.03622092,3496.0,3494.1,0.256982]
[1721409107539,0.03622092,3496.0,3494.2,0.04693614]
[1721409108032,0.03622092,3496.0,3494.1,0.256982]
[1721409108240,0.03622092,3496.0,3494.3,0.04690806]
[1721409108434,0.03622092,3496.0,3494.2,0.04693614]
[1721409108643,0.17362209,3495.9,3494.2,0.26401181]
[1721409109288,2.3735,3495.8,3494.2,0.26401181]
[1721409110157,0.03626081,3495.6,3493.9,2.3362]
[1721409111266,0.03626081,3495.6,3493.2,2.4464]
[1721409111469,0.03626081,3495.6,3493.3,0.55]
[1721409111780,0.03626081,3495.6,3493.3,0.59718894]
[1721409112001,0.71097608,3495.5,3493.4,0.34923145]
[1721409112150,0.71097608,3495.5,3493.5,0.55]
[1721409112346,0.71097608,3495.5,3493.5,0.59713275]
[1721409112583,1.7,3495.1,3493.5,0.04713275]
[1721409113684,2.4896,3495.0,3493.5,0.04713275]
[1721409113895,0.41896,3494.9,3493.5,0.04713275]
[1721409114192,0.41896,3494.9,3493.1,0.44872558]
[1721409114193,0.45536035,3494.9,3493.1,0.44872558]
[1721409114492,3.45536035,3494.9,3493.1,0.44872558]
[1721409114689,3.45536035,3494.9,3493.2,0.03483202]
[1721409116878,3.45536035,3494.9,3493.3,0.05723881]
[1721409117050,3.45536035,3494.9,3493.4,0.55]
[1721409117251,0.59449603,3494.8,3493.4,0.58479116]
[1721409117464,0.59449603,3494.8,3493.4,0.03479116]
[1721409118907,3.03640035,3494.9,3493.4,0.03479116]
[1721409120687,3.3347905,3494.9,3493.4,0.03479116]
[1721409121198,3.3347905,3494.9,3493.1,0.44872558]
[1721409121492,3.3347905,3494.9,3493.2,0.05723871]
[1721409121698,3.03640035,3494.9,3493.3,0.55]
[1721409121900,0.03640035,3494.9,3493.3,3.62723367]
[1721409122058,2.4758,3495.7,3493.7,2.86222]
[1721409122256,2.4758,3495.7,3493.8,0.60722429]
[1721409122455,2.4758,3495.7,3493.8,0.63518478]
[1721409122763,2.4758,3495.7,3493.8,0.57796049]
[1721409122965,0.56494221,3495.6,3493.8,0.02796049]
[1721409123168,3.56494221,3495.6,3493.5,3.41245]
[1721409123367,3.56494221,3495.6,3493.9,0.0260798]
[1721409123567,3.56494221,3495.6,3493.5,3.41244]
[1721409123773,3.56494221,3495.6,3494.0,0.02785278]
[1721409123969,0.60407422,3495.5,3493.7,0.55]
[1721409124186,3.0,3495.6,3493.7,0.55]
[1721409124187,3.0,3495.6,3494.1,0.02782954]
[1721409124491,2.4758,3495.7,3493.9,0.60722332]
[1721409124792,2.4758,3495.7,3494.0,0.02784558]
[1721409124989,2.4758,3495.7,3493.7,0.55]